[Event "*** Titled Tuesday 3|2 Blitz"]
[Site "Chess.com"]
[Date "2015.06.02"]
[Round "4"]
[White "oggy1984"]
[Black "aripov96"]
[Result "1-0"]
[WhiteElo "2319"]
[BlackElo "2259"]
[TimeControl "180+2"]
[EndTime "11:46:48 PDT"]
[Termination "oggy1984 won by resignation"]

1. d4 {[%clk 0:03:01.9]} 1... d5 {[%clk 0:02:58.7]} 2. Nf3 {[%clk 0:02:59.8]}
2... Nf6 {[%clk 0:02:59.3]} 3. c4 {[%clk 0:02:57.5]} 3... c6 {[%clk 0:03:00.6]}
4. Nc3 {[%clk 0:02:54.9]} 4... e6 {[%clk 0:03:00.9]} 5. Bg5 {[%clk 0:02:51.9]}
5... dxc4 {[%clk 0:02:58.4]} 6. e4 {[%clk 0:02:49.4]} 6... b5 {[%clk 0:02:59.9]}
7. e5 {[%clk 0:02:47.5]} 7... h6 {[%clk 0:03:01.1]} 8. Bh4 {[%clk 0:02:38.1]}
8... g5 {[%clk 0:03:02.2]} 9. Nxg5 {[%clk 0:02:36]} 9... hxg5 {[%clk 0:03:03.4]}
10. Bxg5 {[%clk 0:02:34.1]} 10... Nbd7 {[%clk 0:03:04.8]} 11. g3 {[%clk
0:02:31.3]} 11... Qa5 {[%clk 0:03:00.4]} 12. exf6 {[%clk 0:02:27.9]} 12... b4
{[%clk 0:03:01.4]} 13. Ne4 {[%clk 0:02:24.6]} 13... Ba6 {[%clk 0:03:03]} 14. Qf3
{[%clk 0:02:20.5]} 14... O-O-O {[%clk 0:02:42.6]} 15. Bg2 {[%clk 0:02:16.3]}
15... c3 {[%clk 0:02:37.6]} 16. Nxc3 {[%clk 0:02:13.1]} 16... bxc3 {[%clk
0:02:21.9]} 17. Qxc6+ {[%clk 0:02:06.6]} 17... Kb8 {[%clk 0:02:22.5]} 18. Qa8+
{[%clk 0:02:03.3]} 18... Kc7 {[%clk 0:02:21.6]} 19. Qxa7+ {[%clk 0:02:04]} 19...
Kc8 {[%clk 0:02:00]} 20. Bb7+ {[%clk 0:02:00]} 20... Kc7 {[%clk 0:01:58.8]} 21.
Bf4+ {[%clk 0:01:54.1]} 21... e5 {[%clk 0:01:55]} 22. Bxa6+ {[%clk 0:01:49.8]}
22... Kd6 {[%clk 0:01:54.1]} 23. dxe5+ {[%clk 0:01:46.1]} 23... Nxe5 {[%clk
0:01:46.6]} 24. O-O-O+ {[%clk 0:01:43.1]} 24... Ke6 {[%clk 0:01:44.4]} 25. Bc8+
{[%clk 0:01:29.7]} 25... Rxc8 {[%clk 0:01:40.2]} 26. Qxa5 {[%clk 0:01:28.4]}
26... cxb2+ {[%clk 0:01:41.1]} 27. Kb1 {[%clk 0:01:26.2]} 27... Nc4 {[%clk
0:01:38.8]} 28. Qa6+ {[%clk 0:01:11.2]} 28... Nb6 {[%clk 0:01:24.6]} 29. Qxb6+
{[%clk 0:01:08.8]} 29... Kf5 {[%clk 0:01:26]} 30. Qb5+ {[%clk 0:00:44.4]} 30...
Kg4 {[%clk 0:01:13.8]} 31. Qd7+ {[%clk 0:00:43.3]} 31... Kf3 {[%clk 0:01:13]}
32. Rd3+ {[%clk 0:00:33.4]} 32... Kg2 {[%clk 0:01:11.5]} 33. Qd5+ {[%clk
0:00:22.2]} 33... Kh3 {[%clk 0:01:08.8]} 34. Qf3 {[%clk 0:00:22.8]} 34... Rc1+
{[%clk 0:00:45.8]} 35. Bxc1 {[%clk 0:00:23.1]} 35... bxc1=Q+ {[%clk 0:00:46.9]}
36. Rxc1 {[%clk 0:00:23.2]} 36... Ba3 {[%clk 0:00:44.9]} 37. Rxa3 {[%clk
0:00:13.9]} 37... Rd8 {[%clk 0:00:40.7]} 38. Ra5 {[%clk 0:00:12.9]} 38... Rh8
{[%clk 0:00:35.5]} 39. Rcc5 {[%clk 0:00:11.1]} 39... Rh4 {[%clk 0:00:30.3]} 40.
Rh5 {[%clk 0:00:08.3]} 40... Kxh2 {[%clk 0:00:26.9]} 41. Rxh4+ {[%clk
0:00:08.8]} 1-0

[Event "*** Titled Tuesday 3|2 Blitz"]
[Site "Chess.com"]
[Date "2015.06.02"]
[Round "4"]
[White "Aygehovit1992"]
[Black "Zvonokchess"]
[Result "1-0"]
[WhiteElo "2436"]
[BlackElo "2525"]
[TimeControl "180+2"]
[EndTime "11:47:11 PDT"]
[Termination "Aygehovit1992 won by checkmate"]

1. e4 {[%clk 0:03:01.9]} 1... e5 {[%clk 0:03:00.3]} 2. Nf3 {[%clk 0:03:02.6]}
2... Nc6 {[%clk 0:03:01.5]} 3. Bc4 {[%clk 0:03:04.2]} 3... Bc5 {[%clk 0:03:02]}
4. d3 {[%clk 0:03:04.5]} 4... Nf6 {[%clk 0:02:58.6]} 5. O-O {[%clk 0:03:05.4]}
5... O-O {[%clk 0:02:58.5]} 6. c3 {[%clk 0:03:06.8]} 6... d6 {[%clk 0:02:58.7]}
7. b4 {[%clk 0:03:07.8]} 7... Bb6 {[%clk 0:02:59.4]} 8. Be3 {[%clk 0:03:08.9]}
8... Bxe3 {[%clk 0:02:54.3]} 9. fxe3 {[%clk 0:03:09.8]} 9... a5 {[%clk
0:02:53.3]} 10. b5 {[%clk 0:03:10.5]} 10... Ne7 {[%clk 0:02:54.3]} 11. Qe1
{[%clk 0:03:04.1]} 11... c6 {[%clk 0:02:41.5]} 12. Nbd2 {[%clk 0:03:04.7]} 12...
d5 {[%clk 0:02:40.4]} 13. exd5 {[%clk 0:03:05.5]} 13... cxd5 {[%clk 0:02:40.7]}
14. Bb3 {[%clk 0:03:06.8]} 14... e4 {[%clk 0:02:40.5]} 15. dxe4 {[%clk 0:03:08]}
15... dxe4 {[%clk 0:02:41.6]} 16. Nd4 {[%clk 0:03:09.2]} 16... Ng6 {[%clk
0:02:33.4]} 17. Qg3 {[%clk 0:02:58.9]} 17... Qe7 {[%clk 0:02:33.3]} 18. Qg5
{[%clk 0:02:25.7]} 18... a4 {[%clk 0:02:05.9]} 19. Bc2 {[%clk 0:02:26.6]} 19...
h6 {[%clk 0:02:02.4]} 20. Qg3 {[%clk 0:02:25.4]} 20... Re8 {[%clk 0:01:59.2]}
21. b6 {[%clk 0:02:11.6]} 21... Qc5 {[%clk 0:01:44.6]} 22. Rxf6 {[%clk
0:02:01.4]} 22... gxf6 {[%clk 0:01:40.1]} 23. Nxe4 {[%clk 0:01:59.4]} 23... Qxb6
{[%clk 0:01:27.2]} 24. Nd6 {[%clk 0:01:55.3]} 24... Rxe3 {[%clk 0:01:16.5]} 25.
Qxe3 {[%clk 0:01:23.1]} 25... Qxd6 {[%clk 0:01:17.3]} 26. Bxg6 {[%clk
0:01:10.9]} 26... fxg6 {[%clk 0:01:19.2]} 27. Qe8+ {[%clk 0:00:58.4]} 27... Kg7
{[%clk 0:01:17]} 28. Re1 {[%clk 0:00:56.9]} 28... h5 {[%clk 0:00:48.6]} 29. Re7+
{[%clk 0:00:57.3]} 29... Kh6 {[%clk 0:00:50]} 30. Qf8+ {[%clk 0:00:58.5]} 30...
Kg5 {[%clk 0:00:48.6]} 31. h4+ {[%clk 0:00:59.6]} 31... Kf4 {[%clk 0:00:39.9]}
32. Re4+ {[%clk 0:00:56]} 32... Kxe4 {[%clk 0:00:41.8]} 33. Qxd6 {[%clk
0:00:57.3]} 33... Bg4 {[%clk 0:00:41.2]} 34. Qxf6 {[%clk 0:00:56.5]} 34... Rc8
{[%clk 0:00:38.7]} 35. Qxg6+ {[%clk 0:00:57]} 35... Ke3 {[%clk 0:00:40.1]} 36.
Qb6 {[%clk 0:00:55.2]} 36... Kd3 {[%clk 0:00:37.3]} 37. Nb5 {[%clk 0:00:55.7]}
37... Rc4 {[%clk 0:00:33.7]} 38. Qxb7 {[%clk 0:00:54.9]} 38... Re4 {[%clk
0:00:32.8]} 39. Qd5+ {[%clk 0:00:53]} 39... Ke3 {[%clk 0:00:33.7]} 40. Na3
{[%clk 0:00:51.9]} 40... Kf4 {[%clk 0:00:34.4]} 41. Nc4 {[%clk 0:00:50.5]} 41...
Re2 {[%clk 0:00:33.8]} 42. Qd4+ {[%clk 0:00:49.8]} 42... Kg3 {[%clk 0:00:34.6]}
43. Qd3+ {[%clk 0:00:47.2]} 43... Kxh4 {[%clk 0:00:33.8]} 44. Ne3 {[%clk
0:00:47.2]} 44... Rxa2 {[%clk 0:00:26.9]} 45. Qd8+ {[%clk 0:00:47.2]} 45... Kg3
{[%clk 0:00:27.7]} 46. Nf1+ {[%clk 0:00:48.3]} 46... Kf4 {[%clk 0:00:26.6]} 47.
Qd4+ {[%clk 0:00:48.2]} 47... Kg5 {[%clk 0:00:26.8]} 48. Qd5+ {[%clk 0:00:49.2]}
48... Kh4 {[%clk 0:00:27.9]} 49. Qxa2 {[%clk 0:00:49.7]} 49... a3 {[%clk
0:00:28.3]} 50. Qxa3 {[%clk 0:00:49.7]} 50... Kg5 {[%clk 0:00:28.5]} 51. Qe7+
{[%clk 0:00:50.3]} 51... Kf4 {[%clk 0:00:27.5]} 52. Qf6+ {[%clk 0:00:51]} 52...
Ke4 {[%clk 0:00:28.5]} 53. Qd4+ {[%clk 0:00:51.2]} 53... Kf5 {[%clk 0:00:29.4]}
54. Ng3+ {[%clk 0:00:52.3]} 54... Kg5 {[%clk 0:00:31.3]} 55. Qe5+ {[%clk
0:00:50.4]} 55... Kh4 {[%clk 0:00:33.2]} 56. Kh2 {[%clk 0:00:48.8]} 56... Bd7
{[%clk 0:00:31.8]} 57. Qf4+ {[%clk 0:00:49.5]} 57... Bg4 {[%clk 0:00:33.7]} 58.
Nf5# {[%clk 0:00:50.5]} 1-0

[Event "*** Titled Tuesday 3|2 Blitz"]
[Site "Chess.com"]
[Date "2015.06.02"]
[Round "4"]
[White "VSERGUEI"]
[Black "GMG"]
[Result "1-0"]
[WhiteElo "2499"]
[BlackElo "2463"]
[TimeControl "180+2"]
[EndTime "11:47:30 PDT"]
[Termination "VSERGUEI won by resignation"]

1. d4 {[%clk 0:03:00.1]} 1... d6 {[%clk 0:03:01.4]} 2. Nf3 {[%clk 0:03:00.1]}
2... Nf6 {[%clk 0:03:02.4]} 3. c4 {[%clk 0:03:00.6]} 3... g6 {[%clk 0:03:03.9]}
4. Nc3 {[%clk 0:03:01.7]} 4... Bg7 {[%clk 0:03:05.5]} 5. e4 {[%clk 0:03:02.8]}
5... O-O {[%clk 0:03:06.5]} 6. Be2 {[%clk 0:03:03.9]} 6... c5 {[%clk 0:03:07.7]}
7. d5 {[%clk 0:03:04.3]} 7... e6 {[%clk 0:03:07.9]} 8. Nd2 {[%clk 0:03:05.3]}
8... exd5 {[%clk 0:03:05.7]} 9. cxd5 {[%clk 0:03:05.8]} 9... Re8 {[%clk
0:03:02.4]} 10. O-O {[%clk 0:03:05.6]} 10... a6 {[%clk 0:03:02]} 11. a4 {[%clk
0:03:05.5]} 11... Nbd7 {[%clk 0:03:03.3]} 12. h3 {[%clk 0:03:04.6]} 12... Qc7
{[%clk 0:02:49.1]} 13. Ra3 {[%clk 0:03:02.8]} 13... Rb8 {[%clk 0:02:48.4]} 14.
Qc2 {[%clk 0:03:00.7]} 14... c4 {[%clk 0:02:36.3]} 15. a5 {[%clk 0:02:57.4]}
15... b5 {[%clk 0:02:35.9]} 16. axb6 {[%clk 0:02:58.2]} 16... Nxb6 {[%clk
0:02:37.1]} 17. Na4 {[%clk 0:02:53.5]} 17... Nfd7 {[%clk 0:02:26.9]} 18. Nxb6
{[%clk 0:02:39.5]} 18... Nxb6 {[%clk 0:02:27.5]} 19. Nxc4 {[%clk 0:02:39.9]}
19... Bd7 {[%clk 0:02:11.7]} 20. b3 {[%clk 0:02:33.9]} 20... Bb5 {[%clk
0:02:08.8]} 21. Be3 {[%clk 0:02:32.7]} 21... Rec8 {[%clk 0:02:06.8]} 22. Rc1
{[%clk 0:02:31.9]} 22... Nd7 {[%clk 0:02:03.8]} 23. Qa2 {[%clk 0:02:26]} 23...
Nc5 {[%clk 0:02:00.4]} 24. Kh2 {[%clk 0:02:10.3]} 24... Nxe4 {[%clk 0:01:54.1]}
25. Nb6 {[%clk 0:02:10.3]} 25... Qxc1 {[%clk 0:01:51.7]} 26. Bxc1 {[%clk
0:02:10.4]} 26... Rxc1 {[%clk 0:01:48.5]} 27. Bxb5 {[%clk 0:02:10.4]} 27... Be5+
{[%clk 0:01:41.8]} 28. g3 {[%clk 0:02:10.2]} 28... Nc3 {[%clk 0:01:16.6]} 29.
Qd2 {[%clk 0:02:03.9]} 29... Rd1 {[%clk 0:01:12.8]} 30. Qc2 {[%clk 0:02:00.8]}
30... Rxb6 {[%clk 0:01:00.3]} 31. Bxa6 {[%clk 0:01:57.1]} 31... Rxd5 {[%clk
0:00:56.4]} 32. Bc4 {[%clk 0:01:47.4]} 32... Rc5 {[%clk 0:00:57.6]} 33. Ra8+
{[%clk 0:01:23.6]} 33... Kg7 {[%clk 0:00:58]} 34. Qd2 {[%clk 0:01:18.2]} 34...
d5 {[%clk 0:00:46.4]} 35. Qe3 {[%clk 0:01:12.8]} 35... d4 {[%clk 0:00:46.3]} 36.
Qd3 {[%clk 0:01:06]} 36... Rc7 {[%clk 0:00:28.6]} 37. Kg2 {[%clk 0:00:59.6]}
37... h5 {[%clk 0:00:25.5]} 38. h4 {[%clk 0:00:59.6]} 38... Bf6 {[%clk
0:00:26.1]} 39. Qf3 {[%clk 0:00:55.5]} 39... Re7 {[%clk 0:00:24.7]} 40. Rc8
{[%clk 0:00:54.2]} 40... Rd6 {[%clk 0:00:25.2]} 41. Qa8 {[%clk 0:00:53.2]} 41...
Kh7 {[%clk 0:00:26]} 42. Qb8 {[%clk 0:00:38.8]} 42... Rdd7 {[%clk 0:00:21.6]}
43. Rc6 {[%clk 0:00:33.1]} 43... Bg7 {[%clk 0:00:20.6]} 44. Bd3 {[%clk
0:00:31.3]} 44... Ne4 {[%clk 0:00:21.6]} 45. b4 {[%clk 0:00:22.9]} 45... Rb7
{[%clk 0:00:13.8]} 46. Qd8 {[%clk 0:00:22.8]} 46... Red7 {[%clk 0:00:14.6]} 47.
Qc8 {[%clk 0:00:22.8]} 47... Nf6 {[%clk 0:00:13.2]} 48. b5 {[%clk 0:00:23.1]}
48... Nd5 {[%clk 0:00:13.7]} 49. Qe8 {[%clk 0:00:19]} 49... Ne7 {[%clk
0:00:13.9]} 50. Qxf7 {[%clk 0:00:16.1]} 50... Nf5 {[%clk 0:00:10.3]} 51. Qxg6+
{[%clk 0:00:16.3]} 1-0

[Event "*** Titled Tuesday 3|2 Blitz"]
[Site "Chess.com"]
[Date "2015.06.02"]
[Round "4"]
[White "AnastasiaProtopopova"]
[Black "only_defence"]
[Result "0-1"]
[WhiteElo "1857"]
[BlackElo "2053"]
[TimeControl "180+2"]
[EndTime "11:47:49 PDT"]
[Termination "only_defence won on time"]

1. Nf3 {[%clk 0:03:01.9]} 1... Nf6 {[%clk 0:03:00.7]} 2. c4 {[%clk 0:03:00.2]}
2... e6 {[%clk 0:03:01.1]} 3. Nc3 {[%clk 0:02:57.4]} 3... Bb4 {[%clk 0:02:59.4]}
4. Qc2 {[%clk 0:02:57.7]} 4... d5 {[%clk 0:02:55.9]} 5. a3 {[%clk 0:02:52.2]}
5... Be7 {[%clk 0:02:49.7]} 6. d4 {[%clk 0:02:49.3]} 6... O-O {[%clk 0:02:48]}
7. Bf4 {[%clk 0:02:47.9]} 7... a6 {[%clk 0:02:48.8]} 8. e3 {[%clk 0:02:49.8]}
8... Nbd7 {[%clk 0:02:47.7]} 9. Bd3 {[%clk 0:02:43.6]} 9... dxc4 {[%clk
0:02:48.2]} 10. Bxc4 {[%clk 0:02:43.5]} 10... b5 {[%clk 0:02:49.8]} 11. Be2
{[%clk 0:02:42.5]} 11... Bb7 {[%clk 0:02:50.6]} 12. O-O {[%clk 0:02:41]} 12...
c5 {[%clk 0:02:51.5]} 13. Rad1 {[%clk 0:02:36.2]} 13... Qb6 {[%clk 0:02:46.6]}
14. Ne5 {[%clk 0:02:12]} 14... cxd4 {[%clk 0:02:37.3]} 15. exd4 {[%clk 0:02:06]}
15... Rac8 {[%clk 0:02:29.6]} 16. Bd3 {[%clk 0:02:00]} 16... Rfd8 {[%clk
0:02:18.2]} 17. Bg5 {[%clk 0:01:45]} 17... h6 {[%clk 0:02:15.4]} 18. Bf4 {[%clk
0:01:33.2]} 18... Nb8 {[%clk 0:01:50.8]} 19. Be3 {[%clk 0:01:15]} 19... Qc7
{[%clk 0:01:37.1]} 20. Qe2 {[%clk 0:01:09.1]} 20... Nc6 {[%clk 0:01:36.1]} 21.
Nxc6 {[%clk 0:00:56.8]} 21... Qxc6 {[%clk 0:01:38]} 22. f3 {[%clk 0:00:57.7]}
22... Qb6 {[%clk 0:01:22]} 23. Ne4 {[%clk 0:00:49.5]} 23... Nd5 {[%clk
0:01:16.2]} 24. Bf2 {[%clk 0:00:44.2]} 24... Nf4 {[%clk 0:01:14.5]} 25. Qd2
{[%clk 0:00:43.7]} 25... Nxd3 {[%clk 0:01:04.5]} 26. Qxd3 {[%clk 0:00:45.6]}
26... Bd5 {[%clk 0:01:06]} 27. Nc3 {[%clk 0:00:41]} 27... Bc4 {[%clk 0:01:05.7]}
28. Qe4 {[%clk 0:00:38]} 28... Bxf1 {[%clk 0:01:06.6]} 29. Kxf1 {[%clk
0:00:39.2]} 29... Bxa3 {[%clk 0:01:08.1]} 30. d5 {[%clk 0:00:33.7]} 30... Bc5
{[%clk 0:01:08.3]} 31. Bh4 {[%clk 0:00:28]} 31... Re8 {[%clk 0:01:03.2]} 32. Qg4
{[%clk 0:00:23]} 32... Be7 {[%clk 0:00:51.4]} 33. Bf2 {[%clk 0:00:20.6]} 33...
Qc7 {[%clk 0:00:37]} 34. Bd4 {[%clk 0:00:18.9]} 34... e5 {[%clk 0:00:37.2]} 35.
Be3 {[%clk 0:00:16.2]} 35... Qc4+ {[%clk 0:00:38.2]} 36. Qxc4 {[%clk 0:00:16.3]}
36... Rxc4 {[%clk 0:00:39.5]} 37. d6 {[%clk 0:00:16.7]} 37... Bd8 {[%clk
0:00:27.3]} 38. Nd5 {[%clk 0:00:11.1]} 38... Rc6 {[%clk 0:00:25.9]} 39. d7
{[%clk 0:00:09.7]} 39... Ree6 {[%clk 0:00:27]} 40. Nc3 {[%clk 0:00:04.4]} 40...
Red6 {[%clk 0:00:27.2]} 41. Re1 {[%clk 0:00:04]} 41... Rxd7 {[%clk 0:00:27.7]}
42. Bf2 {[%clk 0:00:05.1]} 42... f6 {[%clk 0:00:28.7]} 43. f4 {[%clk 0:00:04.3]}
43... exf4 {[%clk 0:00:28]} 44. Re8+ {[%clk 0:00:04.3]} 44... Kf7 {[%clk
0:00:29.4]} 45. Re4 {[%clk 0:00:05]} 45... Bb6 {[%clk 0:00:26.9]} 46. Bxb6
{[%clk 0:00:03.6]} 46... Rxb6 {[%clk 0:00:28.8]} 47. Rxf4 {[%clk 0:00:05.2]}
47... g5 {[%clk 0:00:27.8]} 48. Rf3 {[%clk 0:00:04.7]} 48... Re6 {[%clk
0:00:29.2]} 49. Kf2 {[%clk 0:00:04.4]} 49... b4 {[%clk 0:00:29.7]} 0-1

[Event "*** Titled Tuesday 3|2 Blitz"]
[Site "Chess.com"]
[Date "2015.06.02"]
[Round "4"]
[White "WanderingPuppet"]
[Black "1random"]
[Result "0-1"]
[WhiteElo "2119"]
[BlackElo "2040"]
[TimeControl "180+2"]
[EndTime "11:48:08 PDT"]
[Termination "1random won on time"]

1. e4 {[%clk 0:03:01.9]} 1... c6 {[%clk 0:02:59.1]} 2. Nc3 {[%clk 0:03:02]} 2...
d5 {[%clk 0:03:00.2]} 3. Nf3 {[%clk 0:03:02.6]} 3... Bg4 {[%clk 0:03:01.9]} 4.
d4 {[%clk 0:03:02.9]} 4... e6 {[%clk 0:02:36.3]} 5. Be2 {[%clk 0:02:55.4]} 5...
Nf6 {[%clk 0:02:34.6]} 6. Qd3 {[%clk 0:02:40.2]} 6... dxe4 {[%clk 0:02:27.3]} 7.
Nxe4 {[%clk 0:02:42.1]} 7... Nbd7 {[%clk 0:02:26.9]} 8. O-O {[%clk 0:02:29]}
8... Nxe4 {[%clk 0:02:10.2]} 9. Qxe4 {[%clk 0:02:27.5]} 9... Bf5 {[%clk
0:02:11.8]} 10. Qf4 {[%clk 0:02:09.8]} 10... Bxc2 {[%clk 0:02:12.3]} 11. Be3
{[%clk 0:02:03]} 11... Be7 {[%clk 0:02:08.9]} 12. Rac1 {[%clk 0:01:40.1]} 12...
Bg6 {[%clk 0:02:07.4]} 13. Ne5 {[%clk 0:01:31.7]} 13... Nxe5 {[%clk 0:02:07.7]}
14. dxe5 {[%clk 0:01:32.1]} 14... O-O {[%clk 0:02:07.6]} 15. Rfd1 {[%clk
0:01:31.4]} 15... Qc7 {[%clk 0:01:59.2]} 16. h4 {[%clk 0:01:23.2]} 16... h6
{[%clk 0:01:51.7]} 17. Qg3 {[%clk 0:01:17.9]} 17... Kh8 {[%clk 0:01:36.7]} 18.
Rc4 {[%clk 0:01:04.9]} 18... Rad8 {[%clk 0:01:30.8]} 19. Rg4 {[%clk 0:00:48]}
19... Rxd1+ {[%clk 0:01:24.8]} 20. Bxd1 {[%clk 0:00:49.9]} 20... h5 {[%clk
0:00:52.8]} 21. Rxg6 {[%clk 0:00:34.7]} 21... fxg6 {[%clk 0:00:51.6]} 22. Qxg6
{[%clk 0:00:22.1]} 22... Qxe5 {[%clk 0:00:50.3]} 23. Bc2 {[%clk 0:00:23.2]}
23... Rf5 {[%clk 0:00:39.3]} 24. Bxf5 {[%clk 0:00:17.3]} 24... Qxf5 {[%clk
0:00:38]} 25. Qe8+ {[%clk 0:00:15]} 25... Bf8 {[%clk 0:00:38.9]} 26. g3 {[%clk
0:00:11.9]} 26... Kh7 {[%clk 0:00:36]} 27. Bxa7 {[%clk 0:00:07]} 27... Qb1+
{[%clk 0:00:30.6]} 28. Kh2 {[%clk 0:00:07.9]} 28... Qxa2 {[%clk 0:00:29.3]} 29.
Qxh5+ {[%clk 0:00:07.3]} 29... Kg8 {[%clk 0:00:29.8]} 30. Bd4 {[%clk 0:00:08.3]}
30... Qd5 {[%clk 0:00:28.2]} 31. Qxd5 {[%clk 0:00:06.5]} 31... exd5 {[%clk
0:00:29.3]} 32. g4 {[%clk 0:00:06.5]} 32... c5 {[%clk 0:00:29.2]} 33. Be5 {[%clk
0:00:07.8]} 33... b5 {[%clk 0:00:28.4]} 34. f4 {[%clk 0:00:07.6]} 34... Kf7
{[%clk 0:00:27.2]} 35. h5 {[%clk 0:00:08.8]} 35... b4 {[%clk 0:00:24.4]} 36. g5
{[%clk 0:00:09.8]} 36... c4 {[%clk 0:00:23.7]} 37. f5 {[%clk 0:00:09]} 37... Bc5
{[%clk 0:00:24.7]} 38. h6 {[%clk 0:00:07.1]} 38... gxh6 {[%clk 0:00:23.7]} 39.
gxh6 {[%clk 0:00:09]} 39... Kg8 {[%clk 0:00:25]} 40. Kh3 {[%clk 0:00:06.8]}
40... d4 {[%clk 0:00:26.2]} 41. Kg4 {[%clk 0:00:05.9]} 41... c3 {[%clk
0:00:27.1]} 42. bxc3 {[%clk 0:00:06.7]} 42... dxc3 {[%clk 0:00:27.3]} 43. Kh5
{[%clk 0:00:07.2]} 43... Kh7 {[%clk 0:00:28]} 44. f6 {[%clk 0:00:07.4]} 44... c2
{[%clk 0:00:24.3]} 45. Bb2 {[%clk 0:00:08]} 45... Bd4 {[%clk 0:00:24.4]} 46. f7
{[%clk 0:00:08.4]} 46... Bc5 {[%clk 0:00:06.4]} 47. Bc1 {[%clk 0:00:05.3]} 47...
Bf8 {[%clk 0:00:06.9]} 48. Bb2 {[%clk 0:00:04.5]} 48... Bxh6 {[%clk 0:00:06.5]}
49. Kg4 {[%clk 0:00:04.9]} 49... Bf8 {[%clk 0:00:04.2]} 50. Kf5 {[%clk
0:00:04.9]} 50... b3 {[%clk 0:00:04.2]} 51. Ke4 {[%clk 0:00:05.6]} 51... Bg7
{[%clk 0:00:03.1]} 52. Bc1 {[%clk 0:00:04.9]} 52... Kg6 {[%clk 0:00:03.7]} 53.
Kd3 {[%clk 0:00:03.8]} 53... Kxf7 {[%clk 0:00:03.9]} 54. Ba3 {[%clk 0:00:02.7]}
54... Ke6 {[%clk 0:00:04.1]} 55. Kc4 {[%clk 0:00:03.4]} 55... b2 {[%clk
0:00:05.3]} 0-1

[Event "*** Titled Tuesday 3|2 Blitz"]
[Site "Chess.com"]
[Date "2015.06.02"]
[Round "4"]
[White "iFrancisco"]
[Black "esr44"]
[Result "1-0"]
[WhiteElo "2298"]
[BlackElo "2015"]
[TimeControl "180+2"]
[EndTime "11:48:14 PDT"]
[Termination "iFrancisco won on time"]

1. e4 {[%clk 0:02:55.1]} 1... c6 {[%clk 0:02:59.4]} 2. d4 {[%clk 0:02:54.6]}
2... d5 {[%clk 0:03:01]} 3. e5 {[%clk 0:02:55]} 3... c5 {[%clk 0:03:02.3]} 4. c3
{[%clk 0:02:52.7]} 4... Nc6 {[%clk 0:03:03.2]} 5. Nf3 {[%clk 0:02:51.6]} 5...
Bg4 {[%clk 0:03:04.3]} 6. dxc5 {[%clk 0:02:52.6]} 6... e6 {[%clk 0:03:04.4]} 7.
b4 {[%clk 0:02:51]} 7... Qc7 {[%clk 0:02:51.4]} 8. Bf4 {[%clk 0:02:47.4]} 8...
Nge7 {[%clk 0:02:50.7]} 9. Bb5 {[%clk 0:02:27.8]} 9... Ng6 {[%clk 0:02:50.9]}
10. Qd4 {[%clk 0:02:22.8]} 10... Bxf3 {[%clk 0:02:41.8]} 11. gxf3 {[%clk
0:02:23.5]} 11... Be7 {[%clk 0:02:36.5]} 12. Bg3 {[%clk 0:02:19.5]} 12... O-O
{[%clk 0:02:28.6]} 13. Bxc6 {[%clk 0:02:20.5]} 13... Qxc6 {[%clk 0:02:21]} 14.
Nd2 {[%clk 0:02:03.3]} 14... b6 {[%clk 0:02:05.6]} 15. cxb6 {[%clk 0:01:46.1]}
15... axb6 {[%clk 0:02:06.1]} 16. O-O {[%clk 0:01:47.7]} 16... Rfc8 {[%clk
0:02:03.1]} 17. Rfc1 {[%clk 0:01:46.5]} 17... Ra3 {[%clk 0:01:41.1]} 18. Nb1
{[%clk 0:01:46.3]} 18... Ra4 {[%clk 0:01:31.4]} 19. Nd2 {[%clk 0:01:32.1]} 19...
h5 {[%clk 0:01:19.1]} 20. h3 {[%clk 0:01:24.4]} 20... Rca8 {[%clk 0:01:13.4]}
21. Kg2 {[%clk 0:00:44.3]} 21... Rxa2 {[%clk 0:01:13.2]} 22. Nb3 {[%clk
0:00:40.3]} 22... Qc4 {[%clk 0:00:30.4]} 23. Rxa2 {[%clk 0:00:34.2]} 23... Rxa2
{[%clk 0:00:30.2]} 24. Qxc4 {[%clk 0:00:35.5]} 24... dxc4 {[%clk 0:00:31.3]} 25.
Nd4 {[%clk 0:00:37.4]} 25... Bg5 {[%clk 0:00:27.3]} 26. Rd1 {[%clk 0:00:30.2]}
26... Be3 {[%clk 0:00:20.3]} 27. Nc6 {[%clk 0:00:11.3]} 27... h4 {[%clk
0:00:18.4]} 28. Kg1 {[%clk 0:00:12.5]} 28... Bg5 {[%clk 0:00:06.2]} 29. Bh2
{[%clk 0:00:13.3]} 29... Nf4 {[%clk 0:00:07.3]} 30. Bxf4 {[%clk 0:00:13.2]}
30... Bxf4 {[%clk 0:00:08.6]} 31. Rd8+ {[%clk 0:00:14.7]} 31... Kh7 {[%clk
0:00:09.7]} 32. Rd4 {[%clk 0:00:16]} 32... Ra1+ {[%clk 0:00:10.6]} 33. Kg2
{[%clk 0:00:17.1]} 33... g5 {[%clk 0:00:11.3]} 34. Rxc4 {[%clk 0:00:17.6]} 34...
b5 {[%clk 0:00:10.5]} 35. Rc5 {[%clk 0:00:18.5]} 35... Ra2 {[%clk 0:00:10.4]}
36. Rxb5 {[%clk 0:00:15.5]} 36... Be3 {[%clk 0:00:11.6]} 37. Rb7 {[%clk
0:00:17]} 37... Rxf2+ {[%clk 0:00:11.7]} 38. Kh1 {[%clk 0:00:18.5]} 38... Rxf3
{[%clk 0:00:12.6]} 39. Nd8 {[%clk 0:00:19.7]} 39... Kg6 {[%clk 0:00:12.5]} 40.
Kg2 {[%clk 0:00:20]} 40... Rf2+ {[%clk 0:00:11.8]} 41. Kh1 {[%clk 0:00:21]}
41... Rf1+ {[%clk 0:00:10.8]} 42. Kg2 {[%clk 0:00:22]} 42... Rf2+ {[%clk
0:00:12.2]} 43. Kh1 {[%clk 0:00:23.1]} 43... Rf5 {[%clk 0:00:11.3]} 44. c4
{[%clk 0:00:23.4]} 44... Rf1+ {[%clk 0:00:09.4]} 45. Kg2 {[%clk 0:00:24.5]}
45... Rf2+ {[%clk 0:00:10.8]} 46. Kh1 {[%clk 0:00:26]} 46... g4 {[%clk
0:00:08.7]} 47. hxg4 {[%clk 0:00:26.7]} 47... h3 {[%clk 0:00:10.1]} 48. Nxf7
{[%clk 0:00:24.6]} 48... h2 {[%clk 0:00:07.4]} 49. Nh8+ {[%clk 0:00:25]} 49...
Kg5 {[%clk 0:00:07.8]} 50. Rg7+ {[%clk 0:00:24.8]} 50... Kh4 {[%clk 0:00:09]}
51. Rf7 {[%clk 0:00:14.5]} 51... Rxf7 {[%clk 0:00:09.5]} 52. Nxf7 {[%clk
0:00:15.2]} 52... Kxg4 {[%clk 0:00:08.7]} 53. c5 {[%clk 0:00:16.4]} 53... Kf5
{[%clk 0:00:07.6]} 54. c6 {[%clk 0:00:17.5]} 54... Bb6 {[%clk 0:00:07.3]} 55.
Kxh2 {[%clk 0:00:18]} 55... Bc7 {[%clk 0:00:07.9]} 56. Kg2 {[%clk 0:00:18.5]}
56... Kg6 {[%clk 0:00:09]} 57. Nd6 {[%clk 0:00:19.7]} 57... Kg5 {[%clk
0:00:08.3]} 58. b5 {[%clk 0:00:20.2]} 58... Kf4 {[%clk 0:00:09.8]} 59. Nc4
{[%clk 0:00:21.5]} 59... Ke4 {[%clk 0:00:10.3]} 60. b6 {[%clk 0:00:22.9]} 60...
Kd5 {[%clk 0:00:02.6]} 61. bxc7 {[%clk 0:00:23.6]} 1-0